bitfinex/quotes_SOLUSD_20251103
["timestamp","ask_amount","ask_price","bid_price","bid_amount"]
[1762176677212,3.81956134,176.23,176.22,34.80330328]
[1762176677411,0.1,176.27,176.23,9.78882769]
[1762176677597,0.1,176.27,176.22,157.95557193]
[1762176677598,0.67,176.26,176.25,9.78882769]
[1762176678025,0.1,176.27,176.26,15.46226465]
[1762176679327,0.1,176.27,176.26,5.67343696]
[1762176679518,5.24293889,176.27,176.26,5.67343696]
[1762176680109,5.24293889,176.27,176.25,5.67375886]
[1762176680625,0.67,176.26,176.25,5.67375886]
[1762176680831,5.14293889,176.26,176.24,104.0]
[1762176681017,4.47293889,176.25,176.24,109.67405188]
[1762176681216,5.14293889,176.25,176.24,109.67405188]
[1762176681622,0.67,176.25,176.24,109.67405188]
[1762176682820,0.67,176.25,176.24,104.0]
[1762176683221,0.67,176.25,176.18,14.19000311]
[1762176683222,0.14216157,176.24,176.18,14.19000311]
[1762176683426,0.14216157,176.24,176.19,5.67542239]
[1762176683427,4.47293889,176.2,176.19,5.67542239]
[1762176683625,4.47293889,176.21,176.19,5.67542239]
[1762176683825,0.67,176.22,176.19,5.67542239]
[1762176684029,4.47293889,176.21,176.19,5.67542239]
[1762176684227,4.47293889,176.21,176.16,29.65637693]
[1762176684417,5.14293889,176.21,176.16,34.80931582]
[1762176684926,0.14216157,176.24,176.16,34.80931582]
[1762176684927,5.28510046,176.24,176.19,20.592]
[1762176685106,5.14293889,176.24,176.19,20.592]
[1762176685440,5.14293889,176.23,176.19,20.592]
[1762176685739,0.67,176.23,176.19,20.592]
[1762176685913,0.67,176.22,176.19,20.592]
[1762176686116,0.67,176.22,176.2,5.67536889]
[1762176687306,4.47293889,176.24,176.2,5.67536889]
[1762176687513,4.47293889,176.24,176.2,19.86379113]
[1762176687514,0.66,176.23,176.2,19.86379113]
[1762176688409,5.42948901,176.26,176.22,4.47293889]
[1762176688613,5.52948901,176.27,176.23,14.26176658]
[1762176688825,0.76,176.27,176.23,118.26176658]
[1762176689011,0.1,176.27,176.24,4.47293889]
[1762176689237,0.1,176.27,176.25,14.26176658]
[1762176689538,3.81434633,176.26,176.25,9.78882769]
[1762176690039,3.81434633,176.26,176.24,104.0]
[1762176690341,3.81434633,176.25,176.24,119.46290848]
[1762176692627,3.81434633,176.25,176.24,109.67408079]
[1762176694038,4.47434633,176.25,176.24,109.67408079]
[1762176695133,3.81434633,176.25,176.24,5.67408079]
[1762176695335,4.47434633,176.25,176.24,5.67408079]
[1762176697139,4.47434633,176.25,176.23,5.67440276]
[1762176697339,0.66,176.25,176.23,5.67440276]
[1762176697528,0.1,176.27,176.23,19.86040968]
[1762176697842,0.66,176.25,176.23,19.86040968]
[1762176698138,0.1,176.27,176.23,19.86040968]
[1762176698329,0.1,176.27,176.25,14.26176658]
[1762176699146,0.1,176.27,176.26,5.67343696]
[1762176699347,3.9100142,176.27,176.26,5.67343696]
[1762176699856,0.1,176.27,176.26,125.18254723]
[1762176700021,0.1,176.27,176.26,124.61520354]
[1762176700419,0.1,176.27,176.26,121.95712822]
[1762176701744,0.76,176.27,176.26,109.67343696]
[1762176701950,0.1,176.27,176.26,109.67343696]
[1762176702323,3.90861613,176.27,176.26,109.67343696]
[1762176702619,0.1,176.27,176.26,109.67343696]
[1762176702819,3.90861613,176.27,176.26,109.67343696]
[1762176703154,3.90861613,176.27,176.26,119.46226465]
[1762176703155,0.1,176.27,176.26,119.46226465]
[1762176703322,0.1,176.27,176.26,120.18226465]
[1762176703744,0.1,176.27,176.26,121.99712822]
[1762176703943,1e-08,176.27,176.26,121.99712822]
[1762176704124,1e-08,176.27,176.26,119.46226465]
[1762176704827,0.70000001,176.27,176.26,109.67343696]
[1762176705227,5.17063182,176.27,176.26,104.0]
[1762176705435,5.17063182,176.27,176.23,9.78882769]
[1762176705436,8.97845248,176.27,176.23,5.67439868]
[1762176705629,4.47063181,176.24,176.23,5.67439868]
[1762176705823,4.50782066,176.26,176.23,5.67439868]
[1762176705824,3.80782066,176.25,176.23,5.67439868]
[1762176706030,8.27845247,176.24,176.21,5.67482454]
[1762176706221,8.27845247,176.23,176.21,5.67482454]
[1762176706422,8.97845247,176.23,176.21,5.67482454]
[1762176706621,5.17063181,176.23,176.21,5.67482454]
[1762176707052,0.7,176.23,176.21,5.67482454]
[1762176707245,0.7,176.23,176.21,15.46365223]
[1762176707631,4.47063181,176.24,176.21,29.65126927]
[1762176707833,3.8119346,176.23,176.21,29.65126927]
[1762176708028,5.17063181,176.25,176.21,29.65126927]
[1762176708264,4.47063181,176.23,176.21,5.67482454]
[1762176708458,3.81183537,176.22,176.21,5.67482454]
[1762176708820,0.7,176.23,176.21,5.67482454]
[1762176709235,3.8148978,176.22,176.21,5.67482454]
[1762176709566,4.47063181,176.25,176.21,20.58244158]
[1762176709847,8.28554491,176.24,176.21,19.86244158]
[1762176710025,8.28554491,176.23,176.21,19.86244158]
[1762176710220,3.8149131,176.22,176.21,19.86244158]
[1762176710452,4.5149131,176.22,176.21,19.86244158]
[1762176711028,3.8149131,176.22,176.21,14.18761704]
[1762176712536,3.8149131,176.22,176.21,23.97644473]
[1762176713056,3.8149131,176.22,176.21,29.65149154]
[1762176714953,4.5149131,176.22,176.21,19.86266385]
[1762176715152,3.8149131,176.22,176.21,29.65149154]
[1762176715778,3.8149131,176.22,176.21,133.65149154]
[1762176720554,1e-08,176.27,176.22,9.78882769]
[1762176720755,1e-08,176.27,176.21,167.21735744]
[1762176720756,1e-08,176.27,176.26,14.2594595]
[1762176721152,0.70000001,176.27,176.23,4.47063181]
[1762176721453,4.47063181,176.25,176.22,9.78882769]
[1762176721660,0.7,176.25,176.22,9.78882769]
[1762176721866,0.70000001,176.27,176.22,14.2594595]
[1762176722048,0.70000001,176.27,176.22,14.9794595]
[1762176722458,0.70000001,176.27,176.24,9.78882769]
[1762176723059,1e-08,176.27,176.24,14.9794595]
[1762176723871,1e-08,176.27,176.26,14.2594595]
[1762176724373,1e-08,176.27,176.26,17.27791982]
[1762176724552,1e-08,176.27,176.26,121.99791982]
[1762176732471,1e-08,176.27,176.26,123.01822989]
[1762176736195,3.81608277,176.33,176.28,9.78882769]
[1762176736395,3.81608277,176.32,176.28,113.78882768]
[1762176736701,3.81608277,176.31,176.3,9.78882769]
[1762176737782,3.81608277,176.31,176.3,13.28479293]
[1762176737979,4.50608277,176.34,176.3,12.62479293]
[1762176738289,3.81608277,176.33,176.3,9.78882769]
[1762176738489,3.81608277,176.32,176.3,12.62479293]
[1762176738682,5.46381635,176.35,176.32,9.78882769]
[1762176738885,4.50351138,176.34,176.32,113.78882768]
[1762176739092,3.81351138,176.33,176.32,113.78882768]
[1762176739299,4.50351138,176.33,176.32,113.78882768]
[1762176739482,0.69,176.33,176.32,113.78882768]
[1762176739691,4.50255623,176.33,176.32,113.78882768]
[1762176739887,0.69,176.33,176.32,113.78882768]
[1762176740090,7.33852147,176.33,176.32,103.99999999]
[1762176740488,7.33852147,176.33,176.32,103.27999999]
[1762176740881,27.93052147,176.33,176.32,103.27999999]
[1762176742389,25.09455623,176.33,176.32,103.27999999]
[1762176742705,27.93052147,176.33,176.32,103.27999999]
[1762176742904,27.93052147,176.33,176.32,108.95150634]
[1762176743111,4.50255623,176.33,176.32,108.95150634]
[1762176743284,3.81255623,176.33,176.32,118.74033403]
[1762176743490,3.81255623,176.34,176.32,119.40033403]
[1762176744102,8.58637258,176.35,176.32,133.57909991]
[1762176745008,9.27637258,176.35,176.32,29.63909992]
[1762176745187,4.77381635,176.35,176.32,29.63909992]
[1762176745378,5.46381635,176.35,176.32,29.63909992]
[1762176745784,0.69,176.34,176.32,29.63909992]
[1762176746414,4.77381635,176.35,176.32,29.63909992]
[1762176746591,5.46381635,176.35,176.32,29.63909992]
[1762176746988,4.77381635,176.35,176.32,30.29909992]
[1762176747316,4.77381635,176.35,176.33,9.78882769]
[1762176747488,4.77381635,176.35,176.32,23.34623747]
[1762176748610,5.48381635,176.35,176.32,19.85027223]
[1762176749792,5.48381635,176.35,176.32,22.68623747]
[1762176750189,3.54596524,176.34,176.32,5.67150635]
[1762176750388,0.71,176.34,176.32,5.67150635]
[1762176750605,8.57916554,176.35,176.32,5.67150635]
[1762176750804,5.48381635,176.35,176.31,20.51082719]
[1762176751014,0.71,176.34,176.31,19.85082719]
[1762176751214,2.83596524,176.33,176.31,5.67182803]
[1762176751417,0.71,176.34,176.31,5.67182803]
[1762176751612,3.54596524,176.34,176.31,5.67182803]
[1762176751912,4.77381635,176.35,176.31,20.5113981]
[1762176752087,9.28916554,176.35,176.31,20.5113981]
[1762176752286,0.71,176.34,176.31,19.8513981]
[1762176752700,4.51534919,176.34,176.31,19.8513981]
[1762176753101,0.71,176.34,176.31,19.8513981]
[1762176753833,0.71,176.34,176.31,20.5113981]
[1762176754115,3.54596524,176.34,176.31,5.67182803]
[1762176754318,0.71,176.33,176.31,5.67182803]
[1762176754814,2.83596524,176.32,176.3,104.0]
[1762176755006,2.83596524,176.31,176.3,104.0]
[1762176755315,2.83596524,176.31,176.27,19.85532554]
[1762176755510,0.71,176.31,176.27,22.69129078]
[1762176755715,0.71,176.31,176.27,23.35129078]
[1762176755920,0.71,176.31,176.27,20.51532554]
[1762176756499,0.71,176.31,176.27,23.35129078]
[1762176756918,3.80534919,176.32,176.27,22.69129078]
[1762176757215,4.51534919,176.32,176.28,0.66]
[1762176758333,0.71,176.32,176.28,0.66]
[1762176759015,0.71,176.32,176.27,22.69129078]
[1762176759220,0.71,176.32,176.27,23.35129078]
[1762176759606,0.71,176.32,176.27,127.35129078]
[1762176759915,0.71,176.32,176.28,2.83596524]
[1762176760219,3.81350656,176.31,176.28,2.83596524]
[1762176760518,0.71,176.31,176.29,5.67247149]
[1762176760722,0.71,176.31,176.28,5.67267785]
[1762176761314,3.81500098,176.3,176.28,5.67267785]
[1762176761514,0.71,176.31,176.28,5.67267785]
[1762176761821,3.81524948,176.3,176.28,5.67267785]
[1762176762125,0.71,176.31,176.28,5.67267785]
[1762176762302,3.81659911,176.3,176.28,5.67267785]
[1762176762504,0.71,176.31,176.28,19.85466105]
[1762176762731,3.81682874,176.3,176.28,19.85466105]
[1762176763020,10.21814472,176.35,176.29,3.49596524]
[1762176763222,4.48673365,176.34,176.29,107.49596524]
[1762176763428,3.81673365,176.33,176.29,107.49596524]
[1762176763635,3.81673365,176.32,176.29,107.49596524]
[1762176763805,3.81673365,176.31,176.29,107.49596524]
[1762176764000,3.81673365,176.3,176.29,107.49596524]
[1762176764219,3.81673365,176.3,176.29,106.83596524]
[1762176764534,3.81673365,176.3,176.29,116.62479293]
[1762176764822,3.81673365,176.3,176.29,117.28479293]
[1762176765029,3.81673365,176.3,176.29,122.95726442]
[1762176765917,3.81673365,176.3,176.29,120.12129918]
[1762176766110,3.81673365,176.3,176.29,122.95726442]
[1762176768221,3.81673365,176.3,176.29,109.67247149]
[1762176768431,3.81673365,176.3,176.29,110.33247149]
[1762176768625,3.81673365,176.3,176.29,113.16843673]
[1762176768834,3.81673365,176.3,176.29,122.95726442]
[1762176769005,3.81673365,176.3,176.29,120.12129918]
[1762176769205,3.81673365,176.3,176.29,122.95726442]
[1762176770519,3.81673365,176.3,176.29,120.12129918]
[1762176770868,3.81673365,176.3,176.29,122.95726442]
[1762176772326,3.81673365,176.3,176.29,109.67247149]
[1762176772644,3.81673365,176.3,176.29,119.46129918]
[1762176772932,4.48673365,176.3,176.29,109.67247149]
[1762176773635,3.81673365,176.3,176.29,109.67247149]
[1762176773928,3.81673365,176.3,176.29,119.46129918]
[1762176774233,3.81673365,176.3,176.29,122.95726442]
[1762176774816,3.81673365,176.3,176.29,120.12129918]
[1762176775017,3.81673365,176.3,176.29,122.95726442]
[1762176775931,3.81673365,176.3,176.29,120.12129918]
[1762176776131,3.81673365,176.3,176.29,122.95726442]
[1762176777915,9.54814472,176.35,176.3,9.78882769]
[1762176778234,3.82543591,176.34,176.33,9.78882769]
[1762176778535,3.82543591,176.34,176.32,9.78882769]
[1762176778836,3.82543591,176.33,176.31,9.78882769]
[1762176779032,3.82543591,176.32,176.31,10.44882769]
[1762176779241,3.82543591,176.32,176.31,9.78882769]
[1762176779429,3.82543591,176.32,176.31,15.46065572]
[1762176779733,3.82543591,176.32,176.31,5.67182803]
[1762176782434,3.82543591,176.32,176.31,6.33182803]
[1762176783441,3.82543591,176.32,176.31,15.46065572]
[1762176784625,3.82543591,176.32,176.31,18.95662096]
[1762176785048,3.82543591,176.32,176.31,18.29662096]
[1762176785438,3.82543591,176.32,176.31,15.46065572]
[1762176789324,3.82543591,176.32,176.31,18.95662096]
[1762176789535,4.77381635,176.35,176.32,9.78882769]
[1762176789835,4.77381635,176.35,176.34,2.83596524]
[1762176790053,4.77381635,176.35,176.34,33.78387924]
[1762176790343,4.77381635,176.35,176.34,33.87679293]
[1762176790540,0.1,176.39,176.34,33.87679293]
[1762176790742,0.1,176.39,176.37,2.83596524]
[1762176790916,0.1,176.39,176.35,0.66]
[1762176790917,0.1,176.39,176.36,12.62479293]
[1762176791121,0.1,176.39,176.37,5.6698985]
[1762176791437,0.77,176.39,176.37,8.50586374]
[1762176791624,0.1,176.39,176.37,8.50586374]
[1762176791828,0.1,176.39,176.38,2.83596524]
[1762176792236,0.77,176.39,176.35,9.78882769]
[1762176792415,0.77,176.39,176.36,2.83596524]
[1762176792621,0.1,176.39,176.37,2.83596524]
[1762176792835,0.1,176.39,176.38,12.62479293]
[1762176793022,0.1,176.39,176.38,18.96436997]
[1762176793437,1e-08,176.39,176.38,18.96436997]
[1762176794436,1e-08,176.39,176.38,17.94108547]
[1762176794726,1e-08,176.39,176.38,15.45840473]
[1762176795047,1e-08,176.39,176.38,17.27108547]
[1762176795342,1e-08,176.39,176.38,18.50804317]
[1762176795646,1e-08,176.4,176.39,10.45882769]
[1762176795831,1e-08,176.4,176.39,12.27150843]
[1762176796520,1e-08,176.4,176.39,11.60150843]
[1762176797126,1e-08,176.4,176.39,15.45808331]
[1762176797532,1e-08,176.4,176.39,17.94076405]
[1762176798048,0.71000001,176.4,176.39,5.66925562]
[1762176798352,2.52268075,176.4,176.36,5.67015515]
[1762176798647,1.81268074,176.37,176.36,5.67015515]
[1762176798847,0.71,176.39,176.33,5.67118471]
[1762176799031,1.81268074,176.36,176.33,5.67118471]
[1762176799232,1.81268074,176.37,176.33,14.17796177]
[1762176799740,2.52268074,176.36,176.33,14.17796177]
[1762176800247,0.71,176.35,176.32,15.46033404]
[1762176800549,0.71,176.35,176.32,29.63909992]
[1762176801553,4.52360051,176.35,176.32,29.63909992]
[1762176801745,6.33628125,176.35,176.32,19.85027223]
[1762176802057,2.52268074,176.34,176.32,19.85027223]
[1762176802551,0.71,176.34,176.32,19.85027223]
[1762176802748,6.33628125,176.36,176.32,19.85027223]
[1762176802944,0.71,176.36,176.32,19.85027223]
[1762176803149,0.71,176.35,176.32,19.85027223]
[1762176803330,3.81398251,176.36,176.32,19.85027223]
[1762176803533,0.71,176.36,176.32,20.52027223]
[1762176803940,1.81268074,176.37,176.32,19.85027223]
[1762176804142,4.52397357,176.36,176.32,19.85027223]
[1762176804463,1.81268074,176.37,176.32,19.85027223]
[1762176804464,0.71,176.35,176.32,19.85027223]
[1762176805236,1.81268074,176.34,176.3,29.64135179]
[1762176805655,0.71,176.33,176.3,29.64135179]
[1762176805859,1.81268074,176.34,176.3,30.31135179]
[1762176806160,2.52268074,176.34,176.3,30.31135179]
[1762176806654,0.71,176.34,176.3,30.31135179]
[1762176807161,0.71,176.34,176.32,5.67150635]
[1762176807358,1.81268074,176.36,176.32,19.85027223]
[1762176807557,3.81529233,176.35,176.32,19.85027223]
[1762176807760,1.81268074,176.36,176.32,19.85027223]
[1762176807939,5.62801774,176.35,176.32,19.85027223]
[1762176808263,1.81268074,176.36,176.32,19.85027223]
[1762176808562,3.815651,176.35,176.32,19.85027223]
[1762176808761,0.67,176.35,176.32,19.85027223]
[1762176809137,2.48268074,176.37,176.32,14.89876588]
[1762176809337,20.592,176.39,176.32,14.89876588]
[1762176809338,5.62849918,176.36,176.32,14.89876588]
[1762176809542,3.81581844,176.35,176.32,14.17876588]
[1762176809742,0.67,176.35,176.32,14.17876588]
[1762176810554,0.67,176.35,176.32,19.85027223]
[1762176812154,2.48268074,176.37,176.32,14.89876588]
[1762176812470,3.81632121,176.36,176.32,14.89876588]
[1762176812769,3.81632121,176.35,176.32,14.89876588]
[1762176812967,0.67,176.36,176.32,16.71144662]
[1762176813264,3.81618559,176.35,176.32,21.66295297]
[1762176813466,0.67,176.36,176.32,19.85027223]
[1762176813651,1.81268074,176.33,176.32,5.67150635]
[1762176813965,4.48639795,176.33,176.32,5.67150635]
[1762176814146,3.81639795,176.33,176.32,5.67150635]
[1762176814763,4.48639795,176.33,176.32,5.67150635]
[1762176815364,3.81639795,176.33,176.3,21.66462407]
[1762176815569,2.48268074,176.35,176.3,21.66462407]
[1762176815570,0.67,176.34,176.3,21.66462407]
[1762176815748,3.81675314,176.33,176.31,10.50882769]
[1762176815948,3.816585,176.35,176.31,12.32150843]
[1762176816147,3.816585,176.34,176.32,2.53268074]
[1762176816367,4.486585,176.37,176.33,1.81268074]
[1762176816555,3.816585,176.36,176.33,1.81268074]
[1762176816745,3.816585,176.35,176.33,2.53268074]
[1762176817071,0.67,176.37,176.33,2.53268074]
[1762176817254,3.81670826,176.36,176.34,8.20354384]
[1762176817567,0.67,176.39,176.35,9.78882769]
[1762176817770,4.48666485,176.38,176.35,9.78882769]
[1762176817974,3.81666485,176.37,176.35,9.78882769]
[1762176818167,20.59200001,176.4,176.36,0.72]
[1762176818376,4.48644123,176.39,176.35,9.78882769]
[1762176818671,3.81644123,176.38,176.35,9.78882769]
[1762176818876,3.81644123,176.37,176.35,9.78882769]
[1762176819176,0.67,176.38,176.35,9.78882769]
[1762176819364,3.81693919,176.37,176.36,5.67022]
[1762176819864,3.81693919,176.37,176.36,17.99172843]
[1762176820169,3.81687786,176.39,176.37,9.78882769]
[1762176820377,1e-08,176.4,176.38,2.53268074]
[1762176820674,3.81686941,176.39,176.38,2.53268074]
[1762176821243,3.81686941,176.39,176.38,8.20225778]
[1762176821446,1e-08,176.4,176.38,8.20225778]
[1762176821670,1e-08,176.4,176.39,3.0996063]
[1762176822046,1e-08,176.4,176.39,12.88843399]
[1762176822244,1e-08,176.44,176.4,10.50882769]
[1762176822478,1e-08,176.44,176.43,11.60150843]
[1762176822686,1e-08,176.44,176.43,12.32150843]
[1762176823249,1e-08,176.44,176.43,17.98947872]
[1762176824755,1e-08,176.44,176.43,16.17679798]
[1762176825148,1e-08,176.44,176.43,17.98947872]
[1762176825952,1e-08,176.44,176.43,5.66797029]
[1762176826372,1e-08,176.44,176.43,6.38797029]
[1762176828093,1e-08,176.44,176.43,5.66797029]
[1762176828870,1e-08,176.44,176.43,6.38797029]
[1762176829368,1e-08,176.44,176.43,8.20065103]
[1762176830014,1e-08,176.44,176.43,6.95476731]
[1762176830203,1e-08,176.44,176.43,8.76744805]
[1762176831592,1e-08,176.44,176.43,6.95476731]
[1762176831773,1e-08,176.44,176.43,8.76744805]
[1762176832373,1e-08,176.44,176.43,18.55627574]
[1762176833883,1e-08,176.44,176.43,16.743595]
[1762176834200,1e-08,176.44,176.43,18.55627574]
[1762176835778,1e-08,176.44,176.43,122.55627574]
[1762176836006,1e-08,176.44,176.43,121.98947872]
[1762176837684,1e-08,176.44,176.43,121.26947872]
[1762176837876,1e-08,176.44,176.43,121.98947872]
[1762176838414,1e-08,176.44,176.43,120.17679798]
[1762176838695,1e-08,176.44,176.43,142.58147872]
[1762176839101,1e-08,176.44,176.43,141.86147872]
[1762176839997,1e-08,176.44,176.43,140.04879798]
[1762176840304,1e-08,176.44,176.43,141.86147872]
[1762176840992,1e-08,176.44,176.43,142.58147872]
[1762176841900,1e-08,176.44,176.43,38.58147872]
[1762176843579,1e-08,176.44,176.43,17.98947872]
[1762176844490,1e-08,176.44,176.43,38.58147872]
[1762176847807,1e-08,176.44,176.43,17.98947872]
[1762176850596,1e-08,176.44,176.43,121.98947872]
[1762176854006,1e-08,176.44,176.43,17.26947872]
[1762176854212,1e-08,176.44,176.43,15.45679798]
[1762176855208,1e-08,176.44,176.43,18.28822462]
[1762176855401,0.66000001,176.44,176.4,5.66888046]
[1762176855711,2.83142664,176.43,176.39,15.45801808]
[1762176856007,2.83142664,176.43,176.39,16.17801808]
[1762176856183,1e-08,176.44,176.4,0.72]
[1762176856386,1e-08,176.44,176.41,2.83142664]
[1762176856610,0.66,176.43,176.41,2.83142664]
[1762176856795,0.66,176.43,176.39,29.63115714]
[1762176856992,3.49142664,176.43,176.39,19.84232945]
[1762176857192,2.83142664,176.42,176.39,5.66919039]
[1762176857393,0.66,176.41,176.39,5.66919039]
[1762176858514,0.66,176.41,176.38,19.84351966]
[1762176859317,3.80303781,176.44,176.38,19.84351966]
[1762176859493,0.66,176.41,176.38,19.84351966]
[1762176859694,0.66,176.41,176.38,22.6749463]
[1762176861218,0.66,176.41,176.38,19.84351966]
[1762176861898,4.4630378,176.41,176.38,19.84351966]
[1762176862299,0.66,176.4,176.38,14.17394262]
[1762176862514,4.47322839,176.4,176.38,14.17394262]
[1762176862707,0.66,176.4,176.38,14.17394262]
[1762176862908,0.66,176.39,176.38,14.17394262]
[1762176864301,0.66000001,176.44,176.38,24.14342664]
[1762176864511,3.81461625,176.43,176.4,2.83142664]
[1762176864716,3.81461625,176.42,176.4,2.83142664]
[1762176864920,0.66,176.43,176.4,2.83142664]
[1762176865112,3.81439026,176.42,176.39,2.83142664]
[1762176865314,0.66,176.43,176.39,2.83142664]
[1762176865628,3.81482021,176.42,176.38,20.592]
[1762176865800,3.81482021,176.41,176.38,23.42342664]
[1762176865999,3.81530395,176.4,176.38,20.592]
[1762176866223,4.4757813,176.4,176.39,5.66925562]
[1762176866426,3.8157813,176.4,176.39,5.66925562]
[1762176866801,3.8157813,176.41,176.39,5.66925562]
[1762176867006,4.5357813,176.4,176.39,5.66925562]
[1762176867323,3.8157813,176.42,176.39,5.66925562]
[1762176867538,3.8157813,176.41,176.39,22.67382132]
[1762176867707,0.72,176.42,176.4,2.83142664]
[1762176867906,3.81482848,176.41,176.4,2.83142664]
[1762176868120,0.72000001,176.44,176.4,2.83142664]
[1762176868320,3.81443401,176.43,176.41,5.66861289]
[1762176868625,3.81443401,176.42,176.41,5.66861289]
[1762176869008,0.72,176.42,176.41,5.66861289]
[1762176869202,0.72,176.42,176.36,113.78882769]
[1762176869203,7.36586065,176.42,176.37,17.00614453]
[1762176869403,3.81443401,176.41,176.37,19.84461639]
[1762176869645,0.72,176.41,176.37,22.67604303]
[1762176870107,0.72,176.41,176.38,2.83142664]
[1762176870303,0.72,176.41,176.37,22.67604303]
[1762176870501,0.72,176.41,176.37,19.84461639]
[1762176870726,0.72,176.41,176.37,22.67604303]
[1762176871023,3.81384321,176.41,176.38,3.54142664]
[1762176871414,3.81384321,176.41,176.39,2.83142664]
[1762176872126,3.81384321,176.41,176.4,2.83142664]
[1762176872424,0.72,176.41,176.4,5.66893424]
[1762176872803,2.83142664,176.43,176.4,5.66893424]
[1762176873009,4.53302334,176.42,176.4,5.66893424]
[1762176873222,0.72,176.42,176.4,19.84126984]
[1762176873401,4.53302334,176.42,176.4,19.84126984]
[1762176873608,0.72,176.42,176.4,19.84126984]
[1762176873827,4.53302334,176.42,176.4,19.84126984]
[1762176874124,3.81302334,176.43,176.4,19.84126984]
[1762176874333,3.81302334,176.42,176.4,19.84126984]
[1762176874638,4.53302334,176.43,176.4,19.84126984]
[1762176874818,3.81302334,176.43,176.41,2.83142664]
[1762176875009,1e-08,176.44,176.43,9.78882769]
[1762176875329,1e-08,176.44,176.43,13.18705135]
[1762176875630,1e-08,176.44,176.43,117.89705135]
[1762176875807,1e-08,176.44,176.43,117.33025433]
[1762176876411,1e-08,176.44,176.43,122.99822462]
[1762176882331,1e-08,176.44,176.43,125.82965126]
[1762176882730,3.80862705,176.54,176.48,30.38082769]
[1762176882946,0.72,176.56,176.53,2.83142664]
[1762176883120,0.69,176.57,176.54,0.56644386]
[1762176883488,0.69,176.57,176.51,1.22654013]
[1762176883618,0.69,176.57,176.54,2.83142664]
[1762176883814,0.69,176.57,176.55,5.66411781]
[1762176884017,0.69,176.57,176.55,8.49554445]
[1762176884224,0.69,176.57,176.55,5.66411781]
[1762176885618,0.1,176.58,176.55,5.66411781]
[1762176885827,0.69,176.56,176.55,5.66411781]
[1762176886415,3.52142664,176.56,176.54,5.66438647]
[1762176886934,0.69,176.55,176.54,5.66438647]
[1762176887122,3.52142664,176.55,176.54,5.66438647]
[1762176887957,0.69,176.55,176.5,5.66572237]
[1762176888131,0.69,176.55,176.48,20.592]
[1762176888132,2.83142664,176.52,176.48,19.83227561]
[1762176888338,2.83142664,176.51,176.48,19.83227561]
[1762176888733,0.69,176.5,176.48,19.83227561]
[1762176889836,0.14216157,176.55,176.48,20.49227561]
[1762176890037,2.83142664,176.51,176.48,19.83227561]
[1762176890345,0.83216157,176.55,176.48,16.99733779]
[1762176890346,2.83142664,176.54,176.48,16.99733779]
[1762176890555,20.592,176.56,176.5,2.83142664]
[1762176890556,3.52142664,176.56,176.5,2.83142664]
[1762176890746,0.69,176.56,176.53,2.83142664]
[1762176891647,0.69,176.56,176.5,0.66]
[1762176891859,3.52142664,176.56,176.51,9.78882769]
[1762176892064,3.52142664,176.56,176.5,2.83142664]
[1762176892366,3.52142664,176.55,176.51,19.82890487]
[1762176892577,0.69,176.54,176.51,19.82890487]
[1762176893267,0.69,176.54,176.51,22.66033151]
[1762176894054,0.69,176.56,176.52,2.83142664]
[1762176894242,0.79,176.58,176.53,22.65808499]
[1762176894463,0.79,176.58,176.54,2.83142664]
[1762176895039,0.79,176.58,176.55,2.83142664]
[1762176895541,0.79,176.58,176.56,2.83142664]
[1762176895743,0.79,176.58,176.54,9.78882769]
[1762176896257,0.79,176.58,176.53,22.65808499]
[1762176896258,3.62142664,176.58,176.53,19.82665835]
[1762176896667,0.1,176.58,176.53,22.65808499]
[1762176896858,0.1,176.58,176.54,13.28025433]
[1762176897058,0.1,176.58,176.55,2.83142664]
[1762176897871,0.79,176.58,176.55,2.83142664]
[1762176898743,0.79,176.58,176.55,19.82441234]
[1762176899661,3.62142664,176.58,176.55,5.66411781]
[1762176900161,0.69,176.57,176.55,19.82441234]
[1762176901386,0.69,176.57,176.55,5.66411781]
[1762176901849,3.52142664,176.57,176.55,5.66411781]
[1762176902284,0.69,176.57,176.55,5.66411781]
[1762176902979,0.69,176.57,176.54,19.82553528]
[1762176903652,0.1,176.58,176.55,3.49142664]
[1762176904986,0.1,176.58,176.56,5.663797]
[1762176905278,0.79,176.58,176.56,5.663797]
[1762176905655,0.1,176.58,176.56,5.663797]
[1762176906290,0.79,176.58,176.56,5.663797]
[1762176907373,0.79,176.58,176.54,19.82553528]
[1762176907979,0.79,176.58,176.54,20.48553528]
[1762176908179,0.1,176.58,176.54,19.82553528]